[Event "Titled Tuesday Blitz October 31 Early 2023"]
[White "chessculator16"]
[Black "Bazilius, Augustinas"]
[BlackFideId "12832251"]
[WhiteElo "2354"]
[BlackElo "2518"]
[Result "0-1"]
[Round "9"]
[TimeControl "180+1"]
[Date "2023.10.31"]
[WhiteClock "0:02:38"]
[BlackClock "0:02:13"]
[Board "80"]

1. d4 {[%clk 0:03:00]}  Nf6 {[%clk 0:02:59]} 2. c4 {[%clk 0:03:01]}  c5 {[%clk 0:02:59]} 3. d5 {[%clk 0:03:01]}  e6 {[%clk 0:02:59]} 4. Nc3 {[%clk 0:03:00]}  exd5 {[%clk 0:03:00]} 5. cxd5 {[%clk 0:03:01]}  d6 {[%clk 0:03:01]} 6. Nf3 {[%clk 0:02:59]}  g6 {[%clk 0:03:00]} 7. Nd2 {[%clk 0:02:58]}  Bg7 {[%clk 0:02:59]} 8. e4 {[%clk 0:02:58]}  O-O {[%clk 0:03:00]} 9. Be2 {[%clk 0:02:59]}  b6 {[%clk 0:03:00]} 10. O-O {[%clk 0:02:57]}  Ba6 {[%clk 0:03:00]} 11. Nc4 {[%clk 0:02:56]}  b5 {[%clk 0:02:54]} 12. Ne3 {[%clk 0:02:56]}  b4 {[%clk 0:02:53]} 13. Bxa6 {[%clk 0:02:46]}  Nxa6 {[%clk 0:02:54]} 14. Ne2 {[%clk 0:02:46]}  Nc7 {[%clk 0:02:43]} 15. f3 {[%clk 0:02:45]}  Nd7 {[%clk 0:02:34]} 16. Nc4 {[%clk 0:02:45]}  Ne5 {[%clk 0:02:31]} 17. Nxe5 {[%clk 0:02:45]}  Bxe5 {[%clk 0:02:32]} 18. Bf4 {[%clk 0:02:43]}  Bxb2 {[%clk 0:02:29]} 19. Rb1 {[%clk 0:02:43]}  Bg7 {[%clk 0:02:25]} 20. Qc1 {[%clk 0:02:42]}  Nb5 {[%clk 0:02:19]} 21. Qc4 {[%clk 0:02:38]}  Na3 {[%clk 0:02:13]} 0-1


[Site "https://www.chess.com"]

[Event "Titled Tuesday Blitz October 31 Early 2023"]
[White "Purtseladze, Maka"]
[Black "Tharushi, T H D Niklesha"]
[WhiteFideId "13602659"]
[BlackFideId "9918264"]
[WhiteElo "2517"]
[BlackElo "2272"]
[Result "1-0"]
[Round "9"]
[TimeControl "180+1"]
[Date "2023.10.31"]
[WhiteClock "0:00:43"]
[BlackClock "0:01:35"]
[Board "81"]

1. d4 {[%clk 0:03:00]}  Nf6 {[%clk 0:02:58]} 2. Nc3 {[%clk 0:02:58]}  d5 {[%clk 0:02:58]} 3. Bf4 {[%clk 0:02:58]}  c5 {[%clk 0:02:56]} 4. e3 {[%clk 0:02:58]}  e6 {[%clk 0:02:56]} 5. Nb5 {[%clk 0:02:57]}  Na6 {[%clk 0:02:55]} 6. c3 {[%clk 0:02:57]}  Bd7 {[%clk 0:02:51]} 7. Nd6+ {[%clk 0:02:49]}  Bxd6 {[%clk 0:02:50]} 8. Bxd6 {[%clk 0:02:50]}  Qb6 {[%clk 0:02:49]} 9. Bxc5 {[%clk 0:02:49]}  Nxc5 {[%clk 0:02:49]} 10. dxc5 {[%clk 0:02:50]}  Qxc5 {[%clk 0:02:49]} 11. Nf3 {[%clk 0:02:49]}  O-O {[%clk 0:02:47]} 12. Qd4 {[%clk 0:02:49]}  Qxd4 {[%clk 0:02:46]} 13. exd4 {[%clk 0:02:50]}  b5 {[%clk 0:02:45]} 14. Ne5 {[%clk 0:02:47]}  Be8 {[%clk 0:02:45]} 15. Bd3 {[%clk 0:02:45]}  a6 {[%clk 0:02:44]} 16. f3 {[%clk 0:02:41]}  Nd7 {[%clk 0:02:44]} 17. Kd2 {[%clk 0:02:37]}  f6 {[%clk 0:02:42]} 18. Nxd7 {[%clk 0:02:22]}  Bxd7 {[%clk 0:02:43]} 19. f4 {[%clk 0:02:21]}  h6 {[%clk 0:02:37]} 20. h4 {[%clk 0:01:47]}  e5 {[%clk 0:02:03]} 21. g3 {[%clk 0:00:54]}  e4 {[%clk 0:01:59]} 22. Bc2 {[%clk 0:00:53]}  Rfe8 {[%clk 0:01:57]} 23. Bb3 {[%clk 0:00:53]}  Bc6 {[%clk 0:01:55]} 24. Ke3 {[%clk 0:00:53]}  Kf7 {[%clk 0:01:50]} 25. h5 {[%clk 0:00:52]}  f5 {[%clk 0:01:46]} 26. g4 {[%clk 0:00:51]}  Kf6 {[%clk 0:01:39]} 27. g5+ {[%clk 0:00:48]}  hxg5 {[%clk 0:01:39]} 28. fxg5+ {[%clk 0:00:49]}  Kxg5 {[%clk 0:01:39]} 29. Rag1+ {[%clk 0:00:50]}  Kf6 {[%clk 0:01:39]} 30. Rg6+ {[%clk 0:00:50]}  Kf7 {[%clk 0:01:39]} 31. Rxc6 {[%clk 0:00:51]}  Rad8 {[%clk 0:01:38]} 32. Rxa6 {[%clk 0:00:46]}  Re6 {[%clk 0:01:38]} 33. Ra7+ {[%clk 0:00:44]}  Kf6 {[%clk 0:01:35]} 34. Rg1 {[%clk 0:00:43]} 1-0


[Site "https://www.chess.com"]

[Event "Titled Tuesday Blitz October 31 Early 2023"]
[White "Topalov, Aleksandar"]
[Black "Estrada Nieto, Julian"]
[WhiteFideId "925659"]
[BlackFideId "5101018"]
[WhiteElo "2269"]
[BlackElo "2516"]
[Result "1-0"]
[Round "9"]
[TimeControl "180+1"]
[Date "2023.10.31"]
[WhiteClock "0:00:54"]
[BlackClock "0:00:00"]
[Board "82"]

1. b3 {[%clk 0:03:00]}  d5 {[%clk 0:02:59]} 2. Bb2 {[%clk 0:03:01]}  Nf6 {[%clk 0:03:00]} 3. Nf3 {[%clk 0:03:00]}  Bg4 {[%clk 0:03:00]} 4. g3 {[%clk 0:02:53]}  Bxf3 {[%clk 0:02:58]} 5. exf3 {[%clk 0:02:54]}  g6 {[%clk 0:02:57]} 6. f4 {[%clk 0:02:49]}  Bg7 {[%clk 0:02:56]} 7. d4 {[%clk 0:02:41]}  O-O {[%clk 0:02:55]} 8. Bd3 {[%clk 0:02:40]}  c6 {[%clk 0:02:20]} 9. O-O {[%clk 0:02:39]}  a5 {[%clk 0:02:16]} 10. f5 {[%clk 0:02:25]}  a4 {[%clk 0:02:13]} 11. fxg6 {[%clk 0:02:25]}  hxg6 {[%clk 0:02:12]} 12. Nd2 {[%clk 0:02:20]}  Nbd7 {[%clk 0:01:51]} 13. c4 {[%clk 0:02:14]}  Qa5 {[%clk 0:01:38]} 14. Qc2 {[%clk 0:02:10]}  e6 {[%clk 0:01:34]} 15. Bc3 {[%clk 0:02:10]}  Qd8 {[%clk 0:01:25]} 16. Nf3 {[%clk 0:02:07]}  axb3 {[%clk 0:01:14]} 17. axb3 {[%clk 0:02:06]}  Qe7 {[%clk 0:01:15]} 18. Rfe1 {[%clk 0:01:57]}  Qd8 {[%clk 0:01:01]} 19. c5 {[%clk 0:01:48]}  Qc7 {[%clk 0:00:57]} 20. b4 {[%clk 0:01:47]}  Rfb8 {[%clk 0:00:52]} 21. Ra5 {[%clk 0:01:31]}  Ne8 {[%clk 0:00:44]} 22. Rea1 {[%clk 0:01:28]}  Rxa5 {[%clk 0:00:44]} 23. bxa5 {[%clk 0:01:25]}  e5 {[%clk 0:00:44]} 24. Nxe5 {[%clk 0:01:15]}  Nxe5 {[%clk 0:00:44]} 25. dxe5 {[%clk 0:01:15]}  Bxe5 {[%clk 0:00:45]} 26. Bxe5 {[%clk 0:01:15]}  Qxe5 {[%clk 0:00:45]} 27. Rb1 {[%clk 0:01:15]}  Nf6 {[%clk 0:00:34]} 28. Bxg6 {[%clk 0:01:06]}  fxg6 {[%clk 0:00:25]} 29. Qxg6+ {[%clk 0:01:05]}  Kh8 {[%clk 0:00:19]} 30. a6 {[%clk 0:01:06]}  Ng8 {[%clk 0:00:03]} 31. a7 {[%clk 0:00:56]}  Ra8 {[%clk 0:00:02]} 32. Rxb7 {[%clk 0:00:55]}  Qe1+ {[%clk 0:00:02]} 33. Kg2 {[%clk 0:00:55]}  Qe4+ {[%clk 0:00:03]} 34. Qxe4 {[%clk 0:00:54]}  dxe4 {[%clk 0:00:04]} 35. g4 {[%clk 0:00:54]}  Nf6 {[%clk 0:00:03]} 36. Rb8+ {[%clk 0:00:54]}  Ng8 {[%clk 0:00:00]} 37. Rxa8 {[%clk 0:00:54]} 1-0


[Site "https://www.chess.com"]

[Event "Titled Tuesday Blitz October 31 Early 2023"]
[White "Todorovic, Bojan"]
[Black "Karamsetty, Jeevan"]
[WhiteFideId "917087"]
[BlackFideId "2025337"]
[WhiteElo "2427"]
[BlackElo "2600"]
[Result "1/2-1/2"]
[Round "9"]
[TimeControl "180+1"]
[Date "2023.10.31"]
[WhiteClock "0:00:40"]
[BlackClock "0:00:28"]
[Board "86"]

1. Nf3 {[%clk 0:02:59]}  Nf6 {[%clk 0:02:59]} 2. g3 {[%clk 0:02:58]}  e6 {[%clk 0:02:59]} 3. Bg2 {[%clk 0:02:58]}  d5 {[%clk 0:02:59]} 4. O-O {[%clk 0:02:58]}  c5 {[%clk 0:03:00]} 5. c4 {[%clk 0:02:58]}  Nc6 {[%clk 0:03:00]} 6. d4 {[%clk 0:02:56]}  cxd4 {[%clk 0:02:58]} 7. Nxd4 {[%clk 0:02:54]}  Be7 {[%clk 0:02:58]} 8. Nc3 {[%clk 0:02:53]}  O-O {[%clk 0:02:55]} 9. cxd5 {[%clk 0:02:51]}  exd5 {[%clk 0:02:54]} 10. Be3 {[%clk 0:02:38]}  Nxd4 {[%clk 0:02:51]} 11. Bxd4 {[%clk 0:02:37]}  Be6 {[%clk 0:02:52]} 12. Bxf6 {[%clk 0:02:28]}  Bxf6 {[%clk 0:02:52]} 13. Nxd5 {[%clk 0:02:29]}  Bxd5 {[%clk 0:02:48]} 14. Qxd5 {[%clk 0:02:25]}  Qe7 {[%clk 0:02:31]} 15. Qxb7 {[%clk 0:02:00]}  Qxb7 {[%clk 0:02:28]} 16. Bxb7 {[%clk 0:01:59]}  Rab8 {[%clk 0:02:29]} 17. Bd5 {[%clk 0:01:59]}  Rxb2 {[%clk 0:02:29]} 18. e3 {[%clk 0:01:54]}  Rd8 {[%clk 0:02:13]} 19. Rad1 {[%clk 0:01:49]}  Kf8 {[%clk 0:02:13]} 20. Bb3 {[%clk 0:01:46]}  Rxd1 {[%clk 0:01:47]} 21. Rxd1 {[%clk 0:01:45]}  Ke7 {[%clk 0:01:48]} 22. Rd5 {[%clk 0:01:42]}  Bc3 {[%clk 0:01:43]} 23. Rb5 {[%clk 0:01:38]}  f5 {[%clk 0:01:31]} 24. Rxf5 {[%clk 0:01:34]}  a5 {[%clk 0:01:20]} 25. Rf7+ {[%clk 0:01:32]}  Kd6 {[%clk 0:01:20]} 26. Rf4 {[%clk 0:01:23]}  h6 {[%clk 0:01:17]} 27. h4 {[%clk 0:01:22]}  Be5 {[%clk 0:01:13]} 28. Ra4 {[%clk 0:01:18]}  Bc3 {[%clk 0:01:13]} 29. Rc4 {[%clk 0:01:18]}  Bb4 {[%clk 0:01:05]} 30. Rd4+ {[%clk 0:01:17]}  Ke5 {[%clk 0:01:03]} 31. Rd7 {[%clk 0:01:15]}  g5 {[%clk 0:01:00]} 32. hxg5 {[%clk 0:01:09]}  hxg5 {[%clk 0:01:01]} 33. g4 {[%clk 0:01:09]}  Ke4 {[%clk 0:00:53]} 34. Bd5+ {[%clk 0:01:05]}  Ke5 {[%clk 0:00:45]} 35. a4 {[%clk 0:00:58]}  Be1 {[%clk 0:00:45]} 36. Bc6 {[%clk 0:00:53]}  Bxf2+ {[%clk 0:00:43]} 37. Kg2 {[%clk 0:00:51]}  Bxe3+ {[%clk 0:00:43]} 38. Kf3 {[%clk 0:00:51]}  Bd2 {[%clk 0:00:34]} 39. Rd5+ {[%clk 0:00:47]}  Ke6 {[%clk 0:00:33]} 40. Rb5 {[%clk 0:00:47]}  Rxb5 {[%clk 0:00:27]} 41. Bxb5 {[%clk 0:00:44]}  Kf6 {[%clk 0:00:27]} 42. Ke4 {[%clk 0:00:43]}  Bb4 {[%clk 0:00:28]} 43. Bc6 {[%clk 0:00:40]}  Bc3 {[%clk 0:00:28]} 1/2-1/2


[Site "https://www.chess.com"]

[Event "Titled Tuesday Blitz October 31 Early 2023"]
[White "Ezat, Mohamed"]
[Black "Polaczek, Richard"]
[WhiteFideId "10600906"]
[BlackFideId "200026"]
[WhiteElo "2568"]
[BlackElo "2419"]
[Result "1/2-1/2"]
[Round "9"]
[TimeControl "180+1"]
[Date "2023.10.31"]
[WhiteClock "0:00:36"]
[BlackClock "0:00:25"]
[Board "87"]

1. e4 {[%clk 0:02:03]}  Nf6 {[%clk 0:02:58]} 2. e5 {[%clk 0:02:01]}  Nd5 {[%clk 0:02:58]} 3. Qf3 {[%clk 0:02:01]}  c6 {[%clk 0:02:45]} 4. a3 {[%clk 0:01:55]}  d6 {[%clk 0:02:34]} 5. d4 {[%clk 0:01:55]}  g6 {[%clk 0:02:21]} 6. h4 {[%clk 0:01:54]}  h5 {[%clk 0:02:19]} 7. Qg3 {[%clk 0:01:54]}  Bg7 {[%clk 0:02:16]} 8. Bd3 {[%clk 0:01:53]}  O-O {[%clk 0:02:01]} 9. Nf3 {[%clk 0:01:52]}  Bg4 {[%clk 0:01:48]} 10. Bg5 {[%clk 0:01:47]}  Qd7 {[%clk 0:01:37]} 11. Nbd2 {[%clk 0:01:45]}  Bf5 {[%clk 0:01:32]} 12. Ne4 {[%clk 0:01:41]}  dxe5 {[%clk 0:01:29]} 13. Nxe5 {[%clk 0:01:40]}  Bxe5 {[%clk 0:01:28]} 14. dxe5 {[%clk 0:01:40]}  Bxe4 {[%clk 0:01:18]} 15. Bxe4 {[%clk 0:01:38]}  Qe6 {[%clk 0:01:18]} 16. Bxd5 {[%clk 0:01:31]}  cxd5 {[%clk 0:01:14]} 17. O-O {[%clk 0:01:29]}  Nc6 {[%clk 0:01:13]} 18. f3 {[%clk 0:01:29]}  Rfe8 {[%clk 0:01:08]} 19. f4 {[%clk 0:01:28]}  Qf5 {[%clk 0:01:07]} 20. Rae1 {[%clk 0:01:23]}  Kh7 {[%clk 0:01:05]} 21. c3 {[%clk 0:01:19]}  f6 {[%clk 0:01:01]} 22. e6 {[%clk 0:01:14]}  Rad8 {[%clk 0:00:51]} 23. Qe3 {[%clk 0:01:10]}  d4 {[%clk 0:00:46]} 24. cxd4 {[%clk 0:01:09]}  Rxd4 {[%clk 0:00:46]} 25. Qb3 {[%clk 0:01:08]}  Rb8 {[%clk 0:00:41]} 26. Rc1 {[%clk 0:01:07]}  Qd5 {[%clk 0:00:39]} 27. Qg3 {[%clk 0:01:04]}  Qxe6 {[%clk 0:00:34]} 28. f5 {[%clk 0:01:04]}  gxf5 {[%clk 0:00:34]} 29. Rfe1 {[%clk 0:00:51]}  Re4 {[%clk 0:00:32]} 30. Rxe4 {[%clk 0:00:51]}  Qxe4 {[%clk 0:00:32]} 31. Re1 {[%clk 0:00:47]}  Qg4 {[%clk 0:00:29]} 32. Qc7 {[%clk 0:00:45]}  fxg5 {[%clk 0:00:26]} 33. Rxe7+ {[%clk 0:00:43]}  Nxe7 {[%clk 0:00:26]} 34. Qxe7+ {[%clk 0:00:41]}  Kg6 {[%clk 0:00:26]} 35. Qe6+ {[%clk 0:00:39]}  Kg7 {[%clk 0:00:26]} 36. Qe5+ {[%clk 0:00:39]}  Kg6 {[%clk 0:00:26]} 37. Qd6+ {[%clk 0:00:38]}  Kg7 {[%clk 0:00:25]} 38. Qe7+ {[%clk 0:00:36]}  Kg6 {[%clk 0:00:25]} 39. Qe6+ {[%clk 0:00:36]}  Kg7 {[%clk 0:00:25]} 40. Qe7+ {[%clk 0:00:36]}  Kg6 {[%clk 0:00:25]} 1/2-1/2


[Site "https://www.chess.com"]

[Event "Titled Tuesday Blitz October 31 Early 2023"]
[White "sjoerd893"]
[Black "UK_23"]
[WhiteElo "2522"]
[BlackElo "2402"]
[Result "1-0"]
[Round "9"]
[TimeControl "180+1"]
[Date "2023.10.31"]
[WhiteClock "0:00:35"]
[BlackClock "0:00:14"]
[Board "89"]

1. e4 {[%clk 0:03:00]}  e5 {[%clk 0:02:12]} 2. Nf3 {[%clk 0:02:58]}  Nc6 {[%clk 0:02:12]} 3. Bc4 {[%clk 0:02:58]}  Nf6 {[%clk 0:02:12]} 4. Ng5 {[%clk 0:02:57]}  d5 {[%clk 0:02:11]} 5. exd5 {[%clk 0:02:58]}  Na5 {[%clk 0:02:10]} 6. Bb5+ {[%clk 0:02:58]}  c6 {[%clk 0:02:11]} 7. dxc6 {[%clk 0:02:59]}  bxc6 {[%clk 0:02:12]} 8. Bd3 {[%clk 0:02:59]}  Nd5 {[%clk 0:02:10]} 9. Nf3 {[%clk 0:02:59]}  Bd6 {[%clk 0:02:09]} 10. O-O {[%clk 0:02:59]}  Nf4 {[%clk 0:02:09]} 11. Re1 {[%clk 0:02:54]}  Nxd3 {[%clk 0:02:09]} 12. cxd3 {[%clk 0:02:54]}  Bg4 {[%clk 0:01:55]} 13. d4 {[%clk 0:02:38]}  f6 {[%clk 0:01:42]} 14. dxe5 {[%clk 0:02:30]}  fxe5 {[%clk 0:01:43]} 15. d4 {[%clk 0:02:29]}  O-O {[%clk 0:01:38]} 16. dxe5 {[%clk 0:02:18]}  Bb4 {[%clk 0:00:51]} 17. Qxd8 {[%clk 0:02:17]}  Raxd8 {[%clk 0:00:52]} 18. Bd2 {[%clk 0:02:17]}  Bxd2 {[%clk 0:00:45]} 19. Nbxd2 {[%clk 0:02:04]}  Rfe8 {[%clk 0:00:36]} 20. b4 {[%clk 0:02:00]}  Bxf3 {[%clk 0:00:33]} 21. Nxf3 {[%clk 0:02:00]}  Nc4 {[%clk 0:00:32]} 22. Rac1 {[%clk 0:01:59]}  Nb2 {[%clk 0:00:29]} 23. Rxc6 {[%clk 0:01:24]}  Nd3 {[%clk 0:00:27]} 24. Rb1 {[%clk 0:01:06]}  Nxb4 {[%clk 0:00:25]} 25. Rc7 {[%clk 0:00:55]}  Nxa2 {[%clk 0:00:23]} 26. Rxa7 {[%clk 0:00:51]}  Nc3 {[%clk 0:00:24]} 27. Re1 {[%clk 0:00:50]}  Re6 {[%clk 0:00:16]} 28. h3 {[%clk 0:00:45]}  Rde8 {[%clk 0:00:16]} 29. Ra5 {[%clk 0:00:43]}  h6 {[%clk 0:00:16]} 30. Nd4 {[%clk 0:00:40]}  R6e7 {[%clk 0:00:17]} 31. f4 {[%clk 0:00:36]}  Rd8 {[%clk 0:00:14]} 32. Nc6 {[%clk 0:00:35]} 1-0


[Site "https://www.chess.com"]

[Event "Titled Tuesday Blitz October 31 Early 2023"]
[White "Ekdyshman, Mikhail"]
[Black "Hoffmann, Asa"]
[WhiteFideId "4149416"]
[BlackFideId "2001470"]
[WhiteElo "2509"]
[BlackElo "2397"]
[Result "0-1"]
[Round "9"]
[TimeControl "180+1"]
[Date "2023.10.31"]
[WhiteClock "0:00:12"]
[BlackClock "0:00:57"]
[Board "90"]

1. e4 {[%clk 0:02:56]}  d6 {[%clk 0:02:59]} 2. d4 {[%clk 0:02:55]}  Nf6 {[%clk 0:02:58]} 3. Nc3 {[%clk 0:02:55]}  c6 {[%clk 0:02:57]} 4. g3 {[%clk 0:02:55]}  Nbd7 {[%clk 0:02:56]} 5. Bg2 {[%clk 0:02:52]}  e5 {[%clk 0:02:56]} 6. Nge2 {[%clk 0:02:52]}  Be7 {[%clk 0:02:56]} 7. h3 {[%clk 0:02:52]}  b5 {[%clk 0:02:56]} 8. a3 {[%clk 0:02:51]}  a6 {[%clk 0:02:56]} 9. O-O {[%clk 0:02:50]}  Bb7 {[%clk 0:02:56]} 10. Be3 {[%clk 0:02:44]}  Qc7 {[%clk 0:02:55]} 11. f4 {[%clk 0:02:36]}  O-O {[%clk 0:02:54]} 12. g4 {[%clk 0:02:31]}  Ne8 {[%clk 0:02:46]} 13. f5 {[%clk 0:02:22]}  h6 {[%clk 0:02:34]} 14. Qd2 {[%clk 0:02:17]}  exd4 {[%clk 0:02:32]} 15. Nxd4 {[%clk 0:02:15]}  Ne5 {[%clk 0:02:32]} 16. b3 {[%clk 0:02:14]}  Qd8 {[%clk 0:02:19]} 17. Rad1 {[%clk 0:02:07]}  Bg5 {[%clk 0:02:19]} 18. Nde2 {[%clk 0:02:00]}  Bxe3+ {[%clk 0:02:15]} 19. Qxe3 {[%clk 0:02:01]}  Qf6 {[%clk 0:02:10]} 20. Ng3 {[%clk 0:01:59]}  Qg5 {[%clk 0:02:05]} 21. Qf2 {[%clk 0:01:37]}  Rd8 {[%clk 0:01:59]} 22. Nce2 {[%clk 0:01:32]}  Qe7 {[%clk 0:01:52]} 23. Nf4 {[%clk 0:01:29]}  Nf6 {[%clk 0:01:52]} 24. Rfe1 {[%clk 0:01:26]}  c5 {[%clk 0:01:47]} 25. Nd5 {[%clk 0:01:11]}  Bxd5 {[%clk 0:01:46]} 26. exd5 {[%clk 0:01:12]}  Rfe8 {[%clk 0:01:44]} 27. Kh1 {[%clk 0:01:05]}  Nfxg4 {[%clk 0:01:28]} 28. hxg4 {[%clk 0:00:56]}  Nxg4 {[%clk 0:01:28]} 29. Rxe7 {[%clk 0:00:51]}  Nxf2+ {[%clk 0:01:26]} 30. Kg1 {[%clk 0:00:51]}  Nxd1 {[%clk 0:01:24]} 31. Re4 {[%clk 0:00:33]}  Ne3 {[%clk 0:01:18]} 32. Rxe8+ {[%clk 0:00:23]}  Rxe8 {[%clk 0:01:18]} 33. Be4 {[%clk 0:00:24]}  Ng4 {[%clk 0:01:13]} 34. Bf3 {[%clk 0:00:18]}  Nf6 {[%clk 0:01:13]} 35. Kf2 {[%clk 0:00:18]}  c4 {[%clk 0:01:09]} 36. bxc4 {[%clk 0:00:18]}  bxc4 {[%clk 0:01:09]} 37. Ne2 {[%clk 0:00:19]}  Re5 {[%clk 0:01:08]} 38. Nd4 {[%clk 0:00:17]}  Nxd5 {[%clk 0:01:03]} 39. Nc6 {[%clk 0:00:17]}  Rxf5 {[%clk 0:01:00]} 40. Kg3 {[%clk 0:00:17]}  Rxf3+ {[%clk 0:01:00]} 41. Kxf3 {[%clk 0:00:17]}  Kf8 {[%clk 0:01:00]} 42. Ke4 {[%clk 0:00:18]}  Nf6+ {[%clk 0:01:00]} 43. Kd4 {[%clk 0:00:18]}  d5 {[%clk 0:01:00]} 44. Kc5 {[%clk 0:00:19]}  h5 {[%clk 0:00:59]} 45. Kb6 {[%clk 0:00:16]}  h4 {[%clk 0:00:59]} 46. Ne5 {[%clk 0:00:17]}  h3 {[%clk 0:00:58]} 47. Nf3 {[%clk 0:00:17]}  d4 {[%clk 0:00:57]} 48. Kc5 {[%clk 0:00:13]}  d3 {[%clk 0:00:57]} 49. cxd3 {[%clk 0:00:13]}  cxd3 {[%clk 0:00:57]} 50. Kd4 {[%clk 0:00:13]}  d2 {[%clk 0:00:57]} 51. Nxd2 {[%clk 0:00:12]}  h2 {[%clk 0:00:57]} 0-1


[Site "https://www.chess.com"]

[Event "Titled Tuesday Blitz October 31 Early 2023"]
[White "Heinemann, Josefine"]
[Black "LiadCuba"]
[WhiteFideId "12900460"]
[WhiteElo "2506"]
[BlackElo "2361"]
[Result "0-1"]
[Round "9"]
[TimeControl "180+1"]
[Date "2023.10.31"]
[WhiteClock "0:00:08"]
[BlackClock "0:00:11"]
[Board "91"]

1. a3 {[%clk 0:02:58]}  e5 {[%clk 0:02:54]} 2. c4 {[%clk 0:02:57]}  Nf6 {[%clk 0:02:54]} 3. d3 {[%clk 0:02:57]}  d5 {[%clk 0:02:48]} 4. cxd5 {[%clk 0:02:58]}  Nxd5 {[%clk 0:02:48]} 5. Nf3 {[%clk 0:02:58]}  Nc6 {[%clk 0:02:49]} 6. e4 {[%clk 0:02:57]}  Nf6 {[%clk 0:02:45]} 7. Be2 {[%clk 0:02:55]}  Bg4 {[%clk 0:02:45]} 8. Be3 {[%clk 0:02:52]}  Bxf3 {[%clk 0:02:37]} 9. Bxf3 {[%clk 0:02:53]}  Nd4 {[%clk 0:02:37]} 10. Nd2 {[%clk 0:02:52]}  Bc5 {[%clk 0:02:36]} 11. O-O {[%clk 0:02:47]}  O-O {[%clk 0:02:36]} 12. Nb3 {[%clk 0:02:47]}  Bb6 {[%clk 0:02:36]} 13. Rc1 {[%clk 0:02:39]}  c6 {[%clk 0:02:35]} 14. Nxd4 {[%clk 0:02:30]}  Bxd4 {[%clk 0:02:36]} 15. b4 {[%clk 0:02:30]}  Qd6 {[%clk 0:02:32]} 16. Qb3 {[%clk 0:02:21]}  Rfd8 {[%clk 0:02:28]} 17. Rfd1 {[%clk 0:02:20]}  Nd7 {[%clk 0:02:28]} 18. Bxd4 {[%clk 0:02:07]}  Qxd4 {[%clk 0:02:29]} 19. Rc3 {[%clk 0:02:03]}  Nf8 {[%clk 0:02:28]} 20. Bg4 {[%clk 0:02:01]}  Rd6 {[%clk 0:02:18]} 21. g3 {[%clk 0:01:55]}  Rad8 {[%clk 0:02:18]} 22. Rdc1 {[%clk 0:01:54]}  Qb6 {[%clk 0:02:05]} 23. a4 {[%clk 0:01:51]}  Rf6 {[%clk 0:01:51]} 24. R1c2 {[%clk 0:01:47]}  Rd4 {[%clk 0:01:51]} 25. b5 {[%clk 0:01:42]}  cxb5 {[%clk 0:01:45]} 26. axb5 {[%clk 0:01:43]}  g6 {[%clk 0:01:41]} 27. h4 {[%clk 0:01:30]}  h5 {[%clk 0:01:39]} 28. Bh3 {[%clk 0:01:28]}  Qa5 {[%clk 0:01:20]} 29. Rc7 {[%clk 0:01:07]}  Rb4 {[%clk 0:01:02]} 30. Qc3 {[%clk 0:00:59]}  Rb1+ {[%clk 0:00:56]} 31. Kg2 {[%clk 0:00:57]}  Qxb5 {[%clk 0:00:56]} 32. Rc5 {[%clk 0:00:55]}  Qb6 {[%clk 0:00:42]} 33. Qxe5 {[%clk 0:00:55]}  Rd1 {[%clk 0:00:34]} 34. d4 {[%clk 0:00:53]}  Qa6 {[%clk 0:00:30]} 35. R5c4 {[%clk 0:00:44]}  Rc6 {[%clk 0:00:26]} 36. Rxc6 {[%clk 0:00:31]}  Qf1+ {[%clk 0:00:24]} 37. Kf3 {[%clk 0:00:31]}  Rd3+ {[%clk 0:00:20]} 38. Kf4 {[%clk 0:00:31]}  Qd1 {[%clk 0:00:13]} 39. Qf6 {[%clk 0:00:12]}  Rf3+ {[%clk 0:00:12]} 40. Ke5 {[%clk 0:00:12]}  Nd7+ {[%clk 0:00:11]} 41. Kd6 {[%clk 0:00:12]}  Rxf6+ {[%clk 0:00:11]} 42. Ke7 {[%clk 0:00:08]}  Rxc6 {[%clk 0:00:11]} 0-1


[Site "https://www.chess.com"]

[Event "Titled Tuesday Blitz October 31 Early 2023"]
[White "Panda Sambit"]
[Black "Babarsik1977"]
[WhiteFideId "25091794"]
[WhiteElo "2481"]
[BlackElo "2323"]
[Result "1-0"]
[Round "9"]
[TimeControl "180+1"]
[Date "2023.10.31"]
[WhiteClock "0:00:16"]
[BlackClock "0:00:14"]
[Board "93"]

1. d4 {[%clk 0:03:00]}  e6 {[%clk 0:02:56]} 2. Nf3 {[%clk 0:03:00]}  f5 {[%clk 0:02:55]} 3. b3 {[%clk 0:02:54]}  Nf6 {[%clk 0:02:55]} 4. g3 {[%clk 0:02:51]}  d5 {[%clk 0:02:55]} 5. Bg2 {[%clk 0:02:52]}  c6 {[%clk 0:02:54]} 6. O-O {[%clk 0:02:52]}  Bd6 {[%clk 0:02:53]} 7. Ba3 {[%clk 0:02:49]}  O-O {[%clk 0:02:52]} 8. c4 {[%clk 0:02:48]}  b6 {[%clk 0:02:52]} 9. Bxd6 {[%clk 0:02:46]}  Qxd6 {[%clk 0:02:52]} 10. Nc3 {[%clk 0:02:46]}  Ba6 {[%clk 0:02:51]} 11. Ne5 {[%clk 0:02:46]}  Nbd7 {[%clk 0:02:50]} 12. f4 {[%clk 0:02:47]}  Rac8 {[%clk 0:02:47]} 13. Rc1 {[%clk 0:02:46]}  Ne4 {[%clk 0:02:47]} 14. Nxe4 {[%clk 0:02:43]}  dxe4 {[%clk 0:02:40]} 15. e3 {[%clk 0:02:05]}  Rfd8 {[%clk 0:02:38]} 16. Nxd7 {[%clk 0:01:24]}  Rxd7 {[%clk 0:02:35]} 17. Rf2 {[%clk 0:01:22]}  c5 {[%clk 0:02:22]} 18. Rd2 {[%clk 0:01:21]}  Rcd8 {[%clk 0:02:22]} 19. d5 {[%clk 0:01:18]}  exd5 {[%clk 0:02:13]} 20. cxd5 {[%clk 0:01:09]}  Bd3 {[%clk 0:02:01]} 21. Rxd3 {[%clk 0:01:07]}  exd3 {[%clk 0:02:00]} 22. Qxd3 {[%clk 0:01:08]}  Re7 {[%clk 0:01:55]} 23. Re1 {[%clk 0:00:57]}  Rde8 {[%clk 0:01:48]} 24. Kf2 {[%clk 0:00:55]}  g6 {[%clk 0:01:43]} 25. h3 {[%clk 0:00:55]}  Qf6 {[%clk 0:01:39]} 26. Bf3 {[%clk 0:00:53]}  Rd8 {[%clk 0:01:13]} 27. Re2 {[%clk 0:00:51]}  Kg7 {[%clk 0:01:11]} 28. g4 {[%clk 0:00:51]}  fxg4 {[%clk 0:01:05]} 29. hxg4 {[%clk 0:00:51]}  Qh4+ {[%clk 0:00:59]} 30. Kg2 {[%clk 0:00:50]}  h5 {[%clk 0:00:47]} 31. g5 {[%clk 0:00:50]}  Rde8 {[%clk 0:00:40]} 32. d6 {[%clk 0:00:42]}  Rd7 {[%clk 0:00:22]} 33. Qc3+ {[%clk 0:00:28]}  Kh7 {[%clk 0:00:20]} 34. Qf6 {[%clk 0:00:28]}  Red8 {[%clk 0:00:16]} 35. Be4 {[%clk 0:00:15]}  Rxd6 {[%clk 0:00:16]} 36. Bxg6+ {[%clk 0:00:15]}  Kg8 {[%clk 0:00:13]} 37. Qf7+ {[%clk 0:00:15]}  Kh8 {[%clk 0:00:14]} 38. Qh7# {[%clk 0:00:16]} 1-0


[Site "https://www.chess.com"]